fUSD/lending_fUSD_20260616
["ID","MTS","AMOUNT","RATE_DAILY","PERIOD"]
[425148447,1781549468000,-169.702827,0.000364,30]
[425148455,1781549468000,-226.637578,0.000364,30]
[425148456,1781549468000,-1037.076023,0.000364,30]
[425148458,1781549468000,-1037.076023,0.000364,30]
[425148457,1781549468000,-1037.076023,0.000364,30]
[425148460,1781549468000,-183.423669,0.000364,30]
[425148459,1781549468000,-183.423669,0.000364,30]
[425148400,1781549468000,-360657.0,0.000364,30]
[425148461,1781549468000,-183.423669,0.000364,30]
[425148451,1781549468000,-226.637578,0.000364,30]
[425148432,1781549468000,-151.0,0.000364,30]
[425148462,1781549468000,-183.423669,0.000364,30]
[425148430,1781549468000,-151.0,0.000364,30]
[425148439,1781549468000,-169.702827,0.000364,30]
[425148399,1781549468000,-150.0,0.00036394,120]
[425148416,1781549468000,-151.0,0.000364,30]
[425148405,1781549468000,-151.0,0.000364,30]
[425148407,1781549468000,-151.0,0.000364,30]
[425148413,1781549468000,-151.0,0.000364,30]
[425148408,1781549468000,-151.0,0.000364,30]
[425148415,1781549468000,-151.0,0.000364,30]
[425148406,1781549468000,-195.314235,0.000364,30]
[425148409,1781549468000,-151.0,0.000364,30]
[425148410,1781549468000,-155.918911,0.000364,30]
[425148411,1781549468000,-151.0,0.000364,30]
[425148412,1781549468000,-151.0,0.000364,30]
[425148414,1781549468000,-161.112962,0.000364,30]
[425148404,1781549468000,-151.0,0.000364,30]
[425148428,1781549468000,-151.0,0.000364,30]
[425148427,1781549468000,-250.563992,0.000364,30]
[425148431,1781549468000,-250.563992,0.000364,30]
[425148424,1781549468000,-151.0,0.000364,30]
[425148425,1781549468000,-151.0,0.000364,30]
[425148418,1781549468000,-286.133117,0.000364,30]
[425148422,1781549468000,-151.0,0.000364,30]
[425148426,1781549468000,-151.0,0.000364,30]
[425148421,1781549468000,-151.0,0.000364,30]
[425148417,1781549468000,-151.0,0.000364,30]
[425148420,1781549468000,-151.0,0.000364,30]
[425148419,1781549468000,-151.0,0.000364,30]
[425148429,1781549468000,-250.563992,0.000364,30]
[425148423,1781549468000,-151.0,0.000364,30]
[425148503,1781549469000,-150.0,0.00036454,120]
[425148512,1781549469000,-1703.28101,0.00036488,30]
[425148499,1781549469000,-1871.1191774,0.00036408,2]
[425148502,1781549469000,-1000.0,0.00036438,120]
[425148493,1781549469000,-500.0,0.00036403,120]
[425148500,1781549469000,-1000.0,0.0003641,120]
[425148497,1781549469000,-256.7907144,0.00036403,120]
[425148498,1781549469000,-218.25,0.00036403,120]
[425148496,1781549469000,-500.0,0.00036403,120]
[425148492,1781549469000,-500.0,0.00036403,120]
[425148501,1781549469000,-2000.0,0.00036411,30]
[425148513,1781549469000,-358.52244,0.00036488,30]
[425148510,1781549469000,-1703.28101,0.00036488,30]
[425148505,1781549469000,-359.81737692,0.00036474,2]
[425148514,1781549469000,-209.111825,0.00036488,10]
[425148506,1781549469000,-253.17,0.00036479,120]
[425148508,1781549469000,-493333.82093598,0.00036488,2]
[425148507,1781549469000,-150.572011,0.0003648,120]
[425148509,1781549469000,-358.52244,0.00036488,30]
[425148511,1781549469000,-358.52244,0.00036488,30]
[425148520,1781549469000,-209.111825,0.00036488,10]
[425148515,1781549469000,-151.0,0.00036488,30]
[425148517,1781549469000,-255.411672,0.00036488,30]
[425148518,1781549469000,-358.52244,0.00036488,30]
[425148495,1781549469000,-500.0,0.00036403,120]
[425148522,1781549469000,-209.111825,0.00036488,10]
[425148504,1781549469000,-1000.0,0.00036465,120]
[425148494,1781549469000,-500.0,0.00036403,120]
[425148474,1781549469000,-420.126286,0.000364,30]
[425148487,1781549469000,-270.502357,0.000364,30]
[425148519,1781549469000,-216.802578,0.00036488,30]
[425148463,1781549469000,-340.709999,0.000364,14]
[425148465,1781549469000,-248.8,0.000364,60]
[425148464,1781549469000,-248.8,0.000364,90]
[425148466,1781549469000,-285.657995,0.000364,30]
[425148467,1781549469000,-420.126286,0.000364,30]
[425148468,1781549469000,-285.657995,0.000364,30]
[425148470,1781549469000,-285.657995,0.000364,30]
[425148469,1781549469000,-151.0,0.000364,30]
[425148471,1781549469000,-420.126286,0.000364,30]
[425148476,1781549469000,-151.0,0.000364,30]
[425148473,1781549469000,-285.657995,0.000364,30]
[425148477,1781549469000,-704.660016,0.000364,30]
[425148475,1781549469000,-151.0,0.000364,30]
[425148478,1781549469000,-420.126286,0.000364,30]
[425148472,1781549469000,-704.660016,0.000364,30]
[425148488,1781549469000,-151.0,0.000364,30]
[425148481,1781549469000,-704.660016,0.000364,30]
[425148480,1781549469000,-247.339865,0.000364,30]
[425148489,1781549469000,-247.339865,0.000364,30]
[425148479,1781549469000,-151.0,0.000364,30]
[425148490,1781549469000,-163.2936167,0.00036403,120]
[425148491,1781549469000,-500.0,0.00036403,120]
[425148482,1781549469000,-151.0,0.000364,30]
[425148484,1781549469000,-247.339865,0.000364,30]
[425148485,1781549469000,-704.660016,0.000364,30]
[425148483,1781549469000,-151.0,0.000364,30]
[425148486,1781549469000,-151.0,0.000364,30]
[425148521,1781549469000,-1703.28101,0.00036488,30]
[425148576,1781549469000,-1941.55733245,0.00036666,30]
[425148525,1781549469000,-151.0,0.00036488,30]
[425148552,1781549469000,-2049.750448,0.00036488,30]
[425148554,1781549469000,-2049.750448,0.00036488,30]
[425148563,1781549469000,-800.0,0.000365,7]
[425148562,1781549469000,-800.0,0.000365,7]
[425148558,1781549469000,-571.813968,0.0003649,2]
[425148557,1781549469000,-1734.68,0.00036489,2]
[425148559,1781549469000,-1000.0,0.00036493,120]
[425148561,1781549469000,-744.37323866,0.000365,120]
[425148560,1781549469000,-150.0,0.00036496,120]
[425148569,1781549469000,-2501.1,0.00036607,10]
[425148566,1781549469000,-1000.0,0.00036547,120]
[425148564,1781549469000,-800.0,0.000365,7]
[425148565,1781549469000,-1000.0,0.0003652,120]
[425148567,1781549469000,-1000.0,0.00036575,120]
[425148568,1781549469000,-1000.0,0.00036602,120]
[425148571,1781549469000,-10999.64,0.0003663,14]
[425148572,1781549469000,-153.755979,0.00036634,120]
[425148575,1781549469000,-3390.18454763,0.00036666,30]
[425148573,1781549469000,-1000.0,0.00036657,120]
[425148574,1781549469000,-153.84237965,0.00036657,14]
[425148580,1781549469000,-151.0,0.00036698,30]
[425148582,1781549469000,-151.0,0.00036698,30]
[425148577,1781549469000,-3169.93923176,0.00036666,30]
[425148579,1781549469000,-151.0,0.00036698,30]
[425148581,1781549469000,-151.0,0.00036698,30]
[425148578,1781549469000,-1000.0,0.00036684,120]
[425148524,1781549469000,-151.0,0.00036488,30]
[425148556,1781549469000,-875.58271162,0.00036489,2]
[425148555,1781549469000,-151.0,0.00036488,30]
[425148570,1781549469000,-1000.0,0.0003663,120]
[425148547,1781549469000,-353.632604,0.00036488,30]
[425148527,1781549469000,-209.111825,0.00036488,10]
[425148553,1781549469000,-2049.750448,0.00036488,30]
[425148516,1781549469000,-1703.28101,0.00036488,30]
[425148526,1781549469000,-222.955101,0.00036488,30]
[425148529,1781549469000,-151.0,0.00036488,30]
[425148538,1781549469000,-422.83462,0.00036488,30]
[425148528,1781549469000,-151.0,0.00036488,30]
[425148531,1781549469000,-151.0,0.00036488,3]
[425148530,1781549469000,-151.0,0.00036488,30]
[425148539,1781549469000,-222.955101,0.00036488,30]
[425148533,1781549469000,-151.0,0.00036488,30]
[425148534,1781549469000,-151.0,0.00036488,3]
[425148536,1781549469000,-178.149291,0.00036488,30]
[425148532,1781549469000,-160.616698,0.00036488,30]
[425148523,1781549469000,-155.817881,0.00036488,30]
[425148548,1781549469000,-168.33845,0.00036488,30]
[425148550,1781549469000,-155.29442,0.00036488,30]
[425148549,1781549469000,-151.0,0.00036488,30]
[425148543,1781549469000,-353.632604,0.00036488,30]
[425148535,1781549469000,-222.955101,0.00036488,30]
[425148545,1781549469000,-353.632604,0.00036488,30]
[425148544,1781549469000,-422.83462,0.00036488,30]
[425148540,1781549469000,-353.632604,0.00036488,30]
[425148546,1781549469000,-422.83462,0.00036488,30]
[425148542,1781549469000,-222.955101,0.00036488,30]
[425148541,1781549469000,-422.83462,0.00036488,30]
[425148537,1781549469000,-151.0,0.00036488,3]
[425148551,1781549469000,-2049.750448,0.00036488,30]
[425148622,1781549470000,-2500.0,0.00036793,2]
[425148620,1781549470000,-500.0,0.00036766,120]
[425148623,1781549470000,-2500.0,0.00036793,2]
[425148625,1781549470000,-2018.92,0.000368,120]
[425148621,1781549470000,-1000.0,0.00036767,120]
[425148613,1781549470000,-500.0,0.00036766,120]
[425148617,1781549470000,-500.0,0.00036766,120]
[425148618,1781549470000,-500.0,0.00036766,120]
[425148616,1781549470000,-500.0,0.00036766,120]
[425148615,1781549470000,-500.0,0.00036766,120]
[425148637,1781549470000,-1049.49190731,0.00036923,120]
[425148619,1781549470000,-500.0,0.00036766,120]
[425148624,1781549470000,-1000.0,0.00036794,120]
[425148627,1781549470000,-2018.92,0.000368,60]
[425148629,1781549470000,-3530.401,0.000368,60]
[425148634,1781549470000,-1000.0,0.00036876,120]
[425148628,1781549470000,-3530.401,0.000368,60]
[425148633,1781549470000,-1000.0,0.00036849,120]
[425148631,1781549470000,-1000.0,0.00036821,120]
[425148630,1781549470000,-3530.4,0.000368,60]
[425148635,1781549470000,-278.0,0.000369,120]
[425148636,1781549470000,-1000.0,0.00036904,120]
[425148632,1781549470000,-150.0,0.00036833,120]
[425148638,1781549470000,-1301.50968129,0.00036923,30]
[425148640,1781549470000,-1000.0,0.00036931,120]
[425148643,1781549470000,-25000.0,0.00036955,10]
[425148641,1781549470000,-589.0,0.00036932,30]
[425148626,1781549470000,-2018.92,0.000368,120]
[425148614,1781549470000,-500.0,0.00036766,120]
[425148583,1781549470000,-180.755825,0.00036698,30]
[425148607,1781549470000,-1000.0,0.00036739,120]
[425148649,1781549470000,-151.0,0.00036955,30]
[425148586,1781549470000,-151.0,0.00036698,30]
[425148585,1781549470000,-180.755825,0.00036698,30]
[425148584,1781549470000,-151.0,0.00036698,30]
[425148587,1781549470000,-180.755825,0.00036698,30]
[425148588,1781549470000,-180.755825,0.00036698,30]
[425148590,1781549470000,-157.280761,0.00036698,30]
[425148591,1781549470000,-151.0,0.00036698,30]
[425148592,1781549470000,-151.0,0.00036698,30]
[425148598,1781549470000,-263.514088,0.00036698,30]
[425148597,1781549470000,-263.514088,0.00036698,30]
[425148589,1781549470000,-151.0,0.00036698,30]
[425148593,1781549470000,-188.066268,0.00036698,30]
[425148610,1781549470000,-500.0,0.00036766,60]
[425148596,1781549470000,-208.743358,0.00036698,30]
[425148594,1781549470000,-151.0,0.00036698,30]
[425148595,1781549470000,-151.0,0.00036698,30]
[425148611,1781549470000,-500.0,0.00036766,60]
[425148601,1781549470000,-6078.0,0.00036698,2]
[425148612,1781549470000,-500.0,0.00036766,120]
[425148605,1781549470000,-2501.09,0.00036722,10]
[425148604,1781549470000,-1000.0,0.00036712,120]
[425148609,1781549470000,-500.0,0.00036766,60]
[425148600,1781549470000,-263.514088,0.00036698,30]
[425148608,1781549470000,-150.0,0.00036756,2]
[425148602,1781549470000,-3645.0,0.00036698,2]
[425148603,1781549470000,-150.0,0.00036707,120]
[425148606,1781549470000,-603.2478,0.00036738,30]
[425148599,1781549470000,-263.514088,0.00036698,30]
[425148650,1781549470000,-263.232207,0.00036955,30]
[425148665,1781549470000,-800.0,0.00037,7]
[425148639,1781549470000,-2507.24,0.00036924,10]
[425148683,1781549470000,-150.0,0.00037198,120]
[425148678,1781549470000,-3169.93923176,0.00037048,30]
[425148686,1781549470000,-150.0,0.00037213,120]
[425148679,1781549470000,-150.0,0.00037055,120]
[425148676,1781549470000,-3390.18454763,0.00037048,30]
[425148682,1781549470000,-1134.15,0.00037164,120]
[425148681,1781549470000,-278.0,0.00037125,120]
[425148680,1781549470000,-278.0,0.00037125,120]
[425148685,1781549470000,-2000.0,0.00037205,30]
[425148684,1781549470000,-1304.71035,0.000372,120]
[425148688,1781549470000,-201.11393869,0.00037258,30]
[425148689,1781549470000,-13787.86842671,0.00037258,2]
[425148699,1781549470000,-1133.73324289,0.000374,20]
[425148687,1781549470000,-150.0,0.00037217,2]
[425148700,1781549470000,-1142.87914337,0.000374,20]
[425148693,1781549470000,-150.0,0.00037325,120]
[425148691,1781549470000,-500.0,0.00037262,40]
[425148694,1781549470000,-1239.16,0.00037336,5]
[425148696,1781549470000,-1001.0,0.0003737,120]
[425148697,1781549470000,-1095.22701032,0.000374,20]
[425148695,1781549470000,-169.85301566,0.00037356,120]
[425148698,1781549470000,-1106.40198462,0.000374,20]
[425148702,1781549470000,-1105.64296896,0.000374,20]
[425148701,1781549470000,-1106.93251572,0.000374,20]
[425148705,1781549470000,-278.0,0.000374,120]
[425148703,1781549470000,-1106.07676417,0.000374,20]
[425148704,1781549470000,-1476.22926775,0.000374,20]
[425148642,1781549470000,-153.629737,0.00036947,120]
[425148690,1781549470000,-153.505652,0.0003726,120]
[425148677,1781549470000,-1941.55733245,0.00037048,30]
[425148692,1781549470000,-4345.19074652,0.00037288,9]
[425148672,1781549470000,-3581.60395676,0.00037,7]
[425148673,1781549470000,-162.370237,0.00037024,16]
[425148645,1781549470000,-151.0,0.00036955,30]
[425148644,1781549470000,-151.0,0.00036955,30]
[425148647,1781549470000,-151.0,0.00036955,30]
[425148646,1781549470000,-151.0,0.00036955,30]
[425148648,1781549470000,-168.7935,0.00036955,30]
[425148662,1781549470000,-151.0,0.00036955,30]
[425148663,1781549470000,-668.55710065,0.00036958,120]
[425148651,1781549470000,-162.261125,0.00036955,30]
[425148658,1781549470000,-151.0,0.00036955,30]
[425148659,1781549470000,-216.956109,0.00036955,30]
[425148654,1781549470000,-151.0,0.00036955,30]
[425148655,1781549470000,-151.0,0.00036955,30]
[425148657,1781549470000,-151.0,0.00036955,30]
[425148652,1781549470000,-151.0,0.00036955,30]
[425148653,1781549470000,-156.521474,0.00036955,30]
[425148669,1781549470000,-800.0,0.00037,7]
[425148656,1781549470000,-151.0,0.00036955,30]
[425148671,1781549470000,-706.0,0.00037,30]
[425148674,1781549470000,-512.9756303,0.00037041,120]
[425148670,1781549470000,-150.0,0.00037,3]
[425148668,1781549470000,-167.0,0.00037,120]
[425148675,1781549470000,-252.58142564,0.00037041,120]
[425148667,1781549470000,-800.0,0.00037,7]
[425148706,1781549470000,-200.0,0.000374,15]
[425148666,1781549470000,-2500.0,0.00037,2]
[425148664,1781549470000,-2500.0,0.00037,2]
[425148661,1781549470000,-170.033381,0.00036955,30]
[425148660,1781549470000,-151.0,0.00036955,30]
[425148742,1781549471000,-1000.0,0.0003741,2]
[425148726,1781549471000,-1000.0,0.0003741,2]
[425148728,1781549471000,-1000.0,0.0003741,2]
[425148721,1781549471000,-1000.0,0.0003741,2]
[425148732,1781549471000,-1000.0,0.0003741,2]
[425148730,1781549471000,-1000.0,0.0003741,2]
[425148731,1781549471000,-1000.0,0.0003741,2]
[425148740,1781549471000,-1000.0,0.0003741,2]
[425148734,1781549471000,-1000.0,0.0003741,2]
[425148736,1781549471000,-1000.0,0.0003741,2]
[425148741,1781549471000,-1000.0,0.0003741,2]
[425148735,1781549471000,-1000.0,0.0003741,2]
[425148738,1781549471000,-1000.0,0.0003741,2]
[425148724,1781549471000,-1000.0,0.0003741,2]
[425148737,1781549471000,-1000.0,0.0003741,2]
[425148733,1781549471000,-1000.0,0.0003741,2]
[425148729,1781549471000,-1000.0,0.0003741,2]
[425148709,1781549471000,-1000.0,0.0003741,2]
[425148727,1781549471000,-1000.0,0.0003741,2]
[425148739,1781549471000,-1000.0,0.0003741,2]
[425148711,1781549471000,-1000.0,0.0003741,2]
[425148712,1781549471000,-1000.0,0.0003741,2]
[425148713,1781549471000,-1000.0,0.0003741,2]
[425148707,1781549471000,-1000.0,0.0003741,2]
[425148708,1781549471000,-1000.0,0.0003741,2]
[425148710,1781549471000,-1000.0,0.0003741,2]
[425148725,1781549471000,-1000.0,0.0003741,2]
[425148715,1781549471000,-1000.0,0.0003741,2]
[425148717,1781549471000,-1000.0,0.0003741,2]
[425148714,1781549471000,-1000.0,0.0003741,2]
[425148718,1781549471000,-1000.0,0.0003741,2]
[425148719,1781549471000,-1000.0,0.0003741,2]
[425148720,1781549471000,-1000.0,0.0003741,2]
[425148722,1781549471000,-1000.0,0.0003741,2]
[425148723,1781549471000,-1000.0,0.0003741,2]
[425148716,1781549471000,-1000.0,0.0003741,2]
[425148743,1781549471000,-1000.0,0.0003741,2]
[425148744,1781549471000,-1000.0,0.0003741,2]
[425148776,1781549471000,-1000.0,0.0003741,2]
[425148777,1781549471000,-500.0,0.0003741,30]
[425148767,1781549471000,-1000.0,0.0003741,2]
[425148766,1781549471000,-1000.0,0.0003741,2]
[425148745,1781549471000,-1000.0,0.0003741,2]
[425148769,1781549471000,-1000.0,0.0003741,2]
[425148770,1781549471000,-1000.0,0.0003741,2]
[425148774,1781549471000,-1000.0,0.0003741,2]
[425148775,1781549471000,-1000.0,0.0003741,2]
[425148772,1781549471000,-1000.0,0.0003741,2]
[425148773,1781549471000,-1000.0,0.0003741,2]
[425148771,1781549471000,-1000.0,0.0003741,2]
[425148778,1781549471000,-300.0,0.0003741,2]
[425148780,1781549471000,-1941.55733245,0.0003743,30]
[425148779,1781549471000,-3390.18454763,0.0003743,30]
[425148781,1781549471000,-3169.93923176,0.0003743,30]
[425148763,1781549471000,-1000.0,0.0003741,2]
[425148755,1781549471000,-1000.0,0.0003741,2]
[425148768,1781549471000,-1000.0,0.0003741,2]
[425148757,1781549471000,-1000.0,0.0003741,2]
[425148747,1781549471000,-1000.0,0.0003741,2]
[425148746,1781549471000,-1000.0,0.0003741,2]
[425148754,1781549471000,-1000.0,0.0003741,2]
[425148756,1781549471000,-1000.0,0.0003741,2]
[425148749,1781549471000,-1000.0,0.0003741,2]
[425148748,1781549471000,-1000.0,0.0003741,2]
[425148750,1781549471000,-1000.0,0.0003741,2]
[425148751,1781549471000,-581.0,0.0003741,2]
[425148753,1781549471000,-1000.0,0.0003741,2]
[425148764,1781549471000,-1000.0,0.0003741,2]
[425148761,1781549471000,-1000.0,0.0003741,2]
[425148760,1781549471000,-1000.0,0.0003741,2]
[425148759,1781549471000,-1000.0,0.0003741,2]
[425148765,1781549471000,-1000.0,0.0003741,2]
[425148762,1781549471000,-1000.0,0.0003741,2]
[425148752,1781549471000,-1000.0,0.0003741,2]
[425148758,1781549471000,-1000.0,0.0003741,2]
[425148819,1781549472000,-1536.075,0.000378,60]
[425148817,1781549472000,-1696.2151,0.000378,60]
[425148818,1781549472000,-1536.075,0.000378,60]
[425148820,1781549472000,-1536.07,0.000378,60]
[425148822,1781549472000,-1941.55733245,0.00037811,30]
[425148816,1781549472000,-712.43066577,0.00037793,120]
[425148815,1781549472000,-152.726047,0.00037747,120]
[425148813,1781549472000,-503.84371303,0.00037713,120]
[425148824,1781549472000,-210.79390016,0.00037823,120]
[425148814,1781549472000,-587.03642246,0.00037736,60]
[425148821,1781549472000,-3390.18454763,0.00037811,30]
[425148823,1781549472000,-3169.93923176,0.00037811,30]
[425148838,1781549472000,-500.0,0.00037945,47]
[425148828,1781549472000,-1377.27,0.00037864,120]
[425148825,1781549472000,-847.0,0.00037834,3]
[425148827,1781549472000,-169.85301566,0.00037856,120]
[425148836,1781549472000,-500.0,0.00037931,38]
[425148834,1781549472000,-500.0,0.00037931,40]
[425148835,1781549472000,-500.0,0.00037931,39]
[425148830,1781549472000,-278.0,0.000379,120]
[425148831,1781549472000,-150.0,0.00037904,120]
[425148829,1781549472000,-1611.7,0.00037864,120]
[425148832,1781549472000,-2110.0,0.0003791,2]
[425148833,1781549472000,-500.0,0.00037929,30]
[425148837,1781549472000,-500.0,0.00037931,37]
[425148809,1781549472000,-281.71811847,0.00037671,30]
[425148826,1781549472000,-150.0,0.0003785,120]
[425148808,1781549472000,-1394.03142649,0.00037649,7]
[425148799,1781549472000,-744.37323866,0.000376,120]
[425148807,1781549472000,-1646.35801896,0.00037649,2]
[425148785,1781549472000,-150.0,0.00037449,2]
[425148789,1781549472000,-333474.66,0.00037508,9]
[425148788,1781549472000,-800.0,0.000375,7]
[425148782,1781549472000,-150.19679565,0.00037449,2]
[425148784,1781549472000,-1011.88270989,0.00037449,2]
[425148787,1781549472000,-800.0,0.000375,7]
[425148786,1781549472000,-800.0,0.000375,7]
[425148783,1781549472000,-500.0,0.00037449,2]
[425148796,1781549472000,-151.0,0.00037597,14]
[425148791,1781549472000,-6390.0,0.00037566,10]
[425148797,1781549472000,-1525.18672101,0.000376,120]
[425148790,1781549472000,-150.0,0.00037535,120]
[425148811,1781549472000,-7538.0,0.000377,117]
[425148798,1781549472000,-360657.0,0.000376,30]
[425148793,1781549472000,-278.0,0.0003758,120]
[425148792,1781549472000,-150.0,0.00037569,120]
[425148794,1781549472000,-278.0,0.0003758,120]
[425148795,1781549472000,-150.0,0.00037593,120]
[425148812,1781549472000,-500.0,0.0003771,120]
[425148801,1781549472000,-1049.49190731,0.00037608,120]
[425148806,1781549472000,-301.524,0.00037642,2]
[425148802,1781549472000,-1285.62758646,0.00037608,30]
[425148803,1781549472000,-692.46,0.00037622,120]
[425148804,1781549472000,-1269.92,0.00037622,120]
[425148810,1781549472000,-150.0,0.00037694,2]
[425148805,1781549472000,-273.11,0.00037622,120]
[425148800,1781549472000,-350.0,0.00037602,2]
[425148840,1781549472000,-500.0,0.00037945,46]
[425148877,1781549472000,-222791.4,0.00037993,13]
[425148843,1781549472000,-500.0,0.00037945,45]
[425148871,1781549472000,-38678.1314645,0.00037972,120]
[425148882,1781549472000,-152.0,0.00038,120]
[425148883,1781549472000,-800.0,0.00038,7]
[425148873,1781549472000,-252.67040906,0.00037973,120]
[425148874,1781549472000,-283.35236688,0.00037973,120]
[425148876,1781549472000,-734.64433512,0.00037992,60]
[425148875,1781549472000,-150.483471,0.00037981,120]
[425148880,1781549472000,-379.41,0.00037993,120]
[425148878,1781549472000,-1975.24,0.00037993,120]
[425148879,1781549472000,-2000.0,0.00037993,120]
[425148881,1781549472000,-153.0,0.00038,120]
[425148884,1781549472000,-2000.0,0.00038,30]
[425148872,1781549472000,-150.43290197,0.00037973,120]
[425148892,1781549472000,-5000.0,0.00038026,7]
[425148895,1781549472000,-5000.0,0.00038026,2]
[425148889,1781549472000,-238.6,0.00038014,120]
[425148886,1781549472000,-602.64,0.00038,30]
[425148894,1781549472000,-5000.0,0.00038026,2]
[425148891,1781549472000,-5000.0,0.00038026,7]
[425148888,1781549472000,-5000.0,0.00038,30]
[425148890,1781549472000,-3731.18,0.00038019,2]
[425148893,1781549472000,-4047.29,0.00038026,7]
[425148897,1781549472000,-5000.0,0.00038026,2]
[425148896,1781549472000,-5000.0,0.00038026,2]
[425148898,1781549472000,-5000.0,0.00038026,2]
[425148839,1781549472000,-1000.0,0.00037945,47]
[425148887,1781549472000,-400.0,0.00038,60]
[425148865,1781549472000,-646.65982734,0.0003797,30]
[425148885,1781549472000,-174.45830528,0.00038,7]
[425148867,1781549472000,-151.0,0.0003797,30]
[425148863,1781549472000,-187.78006524,0.0003797,30]
[425148845,1781549472000,-500.0,0.00037945,43]
[425148844,1781549472000,-500.0,0.00037945,44]
[425148846,1781549472000,-500.0,0.00037945,42]
[425148842,1781549472000,-752.79699085,0.00037945,45]
[425148847,1781549472000,-500.0,0.00037945,41]
[425148848,1781549472000,-500.0,0.0003797,30]
[425148852,1781549472000,-1000.0,0.0003797,30]
[425148855,1781549472000,-187.78006524,0.0003797,30]
[425148856,1781549472000,-1112.1608346,0.0003797,30]
[425148853,1781549472000,-151.0,0.0003797,30]
[425148849,1781549472000,-166.67896332,0.0003797,30]
[425148854,1781549472000,-151.0,0.0003797,30]
[425148841,1781549472000,-1000.0,0.00037945,46]
[425148866,1781549472000,-187.78006524,0.0003797,30]
[425148859,1781549472000,-151.28403746,0.0003797,30]
[425148862,1781549472000,-187.78006524,0.0003797,30]
[425148864,1781549472000,-187.78006524,0.0003797,30]
[425148858,1781549472000,-154.67963625,0.0003797,30]
[425148869,1781549472000,-152.0,0.0003797,30]
[425148861,1781549472000,-151.0,0.0003797,30]
[425148868,1781549472000,-151.0,0.0003797,30]
[425148860,1781549472000,-200.0,0.0003797,30]
[425148857,1781549472000,-155.04060098,0.0003797,30]
[425148851,1781549472000,-500.0,0.0003797,30]
[425148850,1781549472000,-500.0,0.0003797,30]
[425148870,1781549472000,-1899.45834752,0.00037972,120]
[425148938,1781549473000,-157.14013388,0.00038162,120]
[425148935,1781549473000,-1000.0,0.00038134,60]
[425148936,1781549473000,-236.35,0.0003814,60]
[425148939,1781549473000,-500.0,0.00038163,51]
[425148940,1781549473000,-163.01335507,0.00038163,51]
[425148928,1781549473000,-151.0,0.00038048,30]
[425148944,1781549473000,-2017.10229327,0.00038163,30]
[425148934,1781549473000,-150.0,0.00038126,120]
[425148931,1781549473000,-170.99187676,0.00038092,120]
[425148952,1781549473000,-160.0,0.00038163,50]
[425148937,1781549473000,-249.56285894,0.00038143,2]
[425148929,1781549473000,-152.0,0.00038048,30]
[425148933,1781549473000,-235.1,0.00038125,30]
[425148941,1781549473000,-423.32392287,0.00038163,51]
[425148948,1781549473000,-500.0,0.00038163,51]
[425148942,1781549473000,-500.0,0.00038163,51]
[425148946,1781549473000,-160.0,0.00038163,51]
[425148956,1781549473000,-500.0,0.00038163,48]
[425148957,1781549473000,-151.0,0.00038163,50]
[425148945,1781549473000,-500.0,0.00038163,50]
[425148949,1781549473000,-151.0,0.00038163,51]
[425148950,1781549473000,-500.0,0.00038163,50]